[Event "LV Capablanca Memorial Premier 2022"]
[Site "La Habana"]
[Date "2022.04.28"]
[Round "9.3"]
[White "Ordaz Valdes, Lisandra Teresa"]
[Black "Cori Tello, Deysi"]
[Result "1-0"]
[ECO "B07"]
[WhiteElo "2371"]
[BlackElo "2391"]
[Annotator "TA"]
[PlyCount "95"]
[EventDate "2022.04.20"]
[EventType "tourn"]
[EventCountry "CUB"]
[SourceTitle "playchess.com"]
[Source "ChessBase"]
[SourceQuality "1"]
[TimeControl "40/5400+30:1800+30"]

{[%evp 17,95,7,30,12,20,10,24,28,45,43,111,58,70,58,150,126,159,159,168,116,145,80,112,96,81,84,110,36,33,30,51,22,83,0,0,0,8,23,14,0,0,-40,0,0,0,0,20,-4,0,0,0,0,0,0,156,145,230,237,270,43,160,116,424,412,415,406,428,421,698,691,698,681,633,637,635,626,688,677,731,723]} 1. d4 {[%emt 0:02:01]} g6 {[%emt 0:00:06]} 2. g3 {[%emt 0:04:07]} Bg7 {[%emt 0:01:44]} 3. Bg2 {[%emt 0:00:06]} d6 {[%emt 0:01:33]} 4. e4 {[%emt 0:01:06]} Nf6 {[%emt 0:04:01]} 5. Ne2 {[%emt 0:00:23]} O-O {[%emt 0:05:44]} 6. O-O {[%emt 0:00:06]} c6 {[%emt 0:02:45]} 7. h3 {[%emt 0:00:28]} e5 {[%emt 0:00:32]} 8. Nbc3 {[%emt 0:01:05]} Nbd7 {[%emt 0:06:38]} 9. Be3 {[%emt 0:00:23]} Re8 {[%emt 0:01:58]} 10. f4 {[%emt 0:08:40] B07: Pirc Defence: Miscellaneous Systems.} exd4 {[%emt 0:03:51]} 11. Bxd4 {[%emt 0:02:58]} Qe7 {[%emt 0:30:34]} 12. g4 {[%emt 0:10:36] White has an edge.} Nc5 {[%emt 0:03:36][%cal Rc5e4]} 13. Ng3 {[%emt 0:07:59]} h6 {[%emt 0:04:59]} ({Black should try} 13... Ne6 $14) 14. Qd2 {[%emt 0:03:55] [#]} (14. Bxc5 $16 dxc5 15. e5) 14... Ne6 $146 {[%emt 0:08:17]} ({Predecessor:} 14... Be6 15. Rad1 Rad8 16. Qf2 Bc4 17. Rfe1 Ne6 18. Be3 Nd7 19. Qd2 Ndc5 20. Qf2 a5 {1-0 (48) Narmontas,M (2315)-Zickus,S (2257) Panevezys 2007}) 15. Bf2 {[%emt 0:02:39]} Nh7 {[%emt 0:08:16]} (15... b6 $14) 16. Rad1 $1 $16 {[%emt 0:00:55]} Rd8 {[%emt 0:00:00]} 17. Rfe1 {[%emt 0:08:57]} Bf6 {[%emt 0:01:30] [#]} 18. f5 {[%emt 0:10:46]} ({White should play} 18. Nd5 $1 $18 {[%mdl 512]} cxd5 19. exd5) 18... Nef8 {[%emt 0:04:02]} 19. Be3 {[%emt 0:03:32] White is more active.} (19. Qxh6 $2 Bg5 20. f6 Qxf6 $19) (19. Nf1 $142) 19... Be5 {[%emt 0:02:12]} 20. Nce2 {[%emt 0:01:17]} g5 {[%emt 0:02:01]} 21. Nh5 $1 {[%emt 0:00:32]} Nd7 {[%emt 0:02:32]} 22. Bd4 {[%emt 0:01:08]} (22. Nc1 $1 $16) 22... Nhf6 {[%emt 0:00:45]} 23. Nxf6+ {[%emt 0:04:48]} Qxf6 {[%emt 0:00:01]} 24. c3 {[%emt 0:00:17]} Qe7 {[%emt 0:01:15]} (24... b6 $11) 25. Bf3 {[%emt 0:03:20]} (25. h4 $16) 25... b6 $11 {[%emt 0:00:25]} 26. h4 {[%emt 0:01:07]} Bb7 {[%emt 0:00:28]} (26... gxh4 $2 27. Qxh6 f6 28. Kf2 $18 (28. Qxh4 Qh7 $18)) 27. hxg5 {[%emt 0:00:34]} hxg5 {[%emt 0:00:48]} 28. Be3 {[%emt 0:00:13]} f6 {[%emt 0:01:45]} 29. Kf2 {[%emt 0:01:28]} Kf7 {[%emt 0:01:10]} (29... c5 $15) 30. Rh1 {[%emt 0:00:13] Threatens to win with Rh7+.} Rh8 {[%emt 0:00:01] Against Rh7+} 31. Nd4 {[%emt 0:06:21]} Rag8 {[%emt 0:02:41]} 32. Qd3 {[%emt 0:04:17]} Nc5 {[%emt 0:00:00]} 33. Qc2 {[%emt 0:02:12]} d5 $1 {[%emt 0:00:14]} 34. exd5 {[%emt 0:02:28]} cxd5 {[%emt 0:00:14]} (34... Bg3+ $2 35. Kxg3 Qxe3 36. dxc6 $18 (36. Rde1 Qf4+ 37. Kg2 cxd5 $14)) 35. b4 $36 {[%emt 0:00:05][%mdl 2048] White is pushing.} Nd7 {[%emt 0:00:29]} (35... Bg3+ $2 36. Kxg3 Qd6+ 37. Kg2 $18) (35... Bxd4 $11 36. cxd4 (36. Bxd4 Ne4+ 37. Kg2 Rh4 $11) 36... Ne4+ 37. Bxe4 dxe4) 36. Qb3 $1 $16 {[%emt 0:01:39]} Bg3+ {[%emt 0:00:50]} (36... Bxd4 $16 37. Bxd5+ (37. cxd4 Kg7 $16) 37... Kg7 38. cxd4 (38. Bxd4 Re8 $14) 38... Bxd5 39. Qxd5 Re8) 37. Kxg3 $18 {[%emt 0:02:35]} (37. Kg2 $2 Qxe3 38. Kxg3 Ne5 $19) 37... Qxe3 {[%emt 0:00:01]} 38. Kg2 $2 {[%emt 0:00:13]} (38. Rde1 $18 Qf4+ 39. Kg2) 38... Ne5 {[%emt 0:00:59]} (38... Rxh1 $1 $14 39. Rxh1 (39. Bxd5+ Kf8 $11) 39... Qd2+ 40. Kf1 Re8) 39. Bxd5+ {[%emt 0:00:24]} Kg7 $2 {[%emt 0:00:29][%mdl 8192] Loses the game.} (39... Kf8 $16 40. Bxb7 Rxh1 41. Rxh1 (41. Ne6+ Ke7 $11) 41... Qd2+ 42. Kf1 Nxg4) 40. Bxb7 {[%emt 0:00:00]} Rxh1 {[%emt 0:00:00]} 41. Rxh1 {[%emt 0:03:53] White threatens Ne6+ and mate. Chess con chili.} (41. Ne6+ Kf7 42. Nd4+ (42. Kxh1 Rh8+ 43. Kg2 Rh2+ 44. Kxh2 Nxg4+ 45. Kg2 Qf2+ 46. Kh3 Qh4+ 47. Kg2 Qf2+ 48. Kh3 Qh4+ 49. Kg2 Qf2+ $11) (42. Rxh1 Qe2+ 43. Kg3 Qe3+ 44. Kg2 Qe2+ 45. Kg3 Qe3+ 46. Kg2 $11) (42. Nd8+ Kf8 $11) 42... Kf8 43. Rxh1 (43. Ne6+ Ke7 $11) 43... Qd2+ 44. Kf1 Nxg4 $16) 41... Qd2+ {[%emt 0:00:32]} 42. Kf1 {[%emt 0:00:30][%cal Bg2f1,Bf1e1,Be1d1,Bd1c2,Bc2c1,Bc1b1][%mdl 32] Threatening mate with Ne6+. White is clearly winning.} Qd3+ {[%emt 0:06:46] [#]} (42... Re8 $142) 43. Ke1 $1 Qe3+ {[%emt 0:00:30] [#]} 44. Kd1 $1 {[%emt 0:15:24]} Rd8 {[%emt 0:00:30]} 45. Kc2 {Ne6+ would kill now.} ({Inferior is} 45. Bd5 Rxd5 46. Qxd5 Qd3+ 47. Ke1 Qg3+ 48. Ke2 Qd3+ 49. Kf2 Qd2+ 50. Kg1 Qe1+ 51. Kg2 Qd2+ 52. Kh3 Qd3+ 53. Kg2 Qd2+ 54. Kh3 Qd3+ 55. Kg2 Qd2+ $11) 45... Qd3+ {[%emt 0:00:30]} 46. Kc1 {[%emt 0:01:00] Strongly threatening Ne6+.} ({Weaker is} 46. Kb2 Nc4+ 47. Qxc4 (47. Ka1 Rxd4 48. Ba6 Rxg4 $17) 47... Qxc4 48. Ne6+ Kg8 49. Nxd8 a5 $16) 46... Qe3+ {[%emt 0:08:23]} 47. Kb1 {[%emt 0:00:22] White wants to mate with Ne6+.} Qd3+ {[%emt 0:00:30]} 48. Qc2 {[%emt 0:00:30] Weighted Error Value: White=0.20 (precise) /Black=0.48} 1-0

[Event "LV Capablanca Memorial Premier 2022"]
[Site "La Habana"]
[Date "2022.04.28"]
[Round "9.4"]
[White "Kiolbasa, Oliwia"]
[Black "Bulmaga, Irina"]
[Result "1/2-1/2"]
[ECO "C92"]
[WhiteElo "2388"]
[BlackElo "2390"]
[Annotator "TA"]
[PlyCount "25"]
[EventDate "2022.04.20"]
[EventType "tourn"]
[EventCountry "CUB"]
[SourceTitle "playchess.com"]
[Source "ChessBase"]
[SourceQuality "1"]
[TimeControl "40/5400+30:1800+30"]

{[%evp 24,25,29,0]} 1. e4 {[%emt 0:01:28]} e5 {[%emt 0:00:08]} 2. Nf3 {[%emt 0:00:07]} Nc6 {[%emt 0:00:08]} 3. Bb5 {[%emt 0:00:36]} a6 {[%emt 0:00:09]} 4. Ba4 {[%emt 0:00:06]} Nf6 {[%emt 0:00:09]} 5. O-O {[%emt 0:01:14]} Be7 {[%emt 0:00:14]} 6. Re1 {[%emt 0:01:28]} b5 {[%emt 0:00:10]} 7. Bb3 {[%emt 0:00:06]} O-O {[%emt 0:00:09]} 8. c3 {[%emt 0:06:27]} d6 {[%emt 0:00:16]} 9. h3 {[%emt 0:00:20]} Re8 {[%emt 0:00:24] [#]} 10. Ng5 $146 {[%emt 0:01:40]} ({Predecessor:} 10. d4 Bb7 11. Nbd2 Bf8 12. a4 h6 13. Bc2 Nb8 14. Bd3 Nbd7 15. axb5 exd4 16. cxd4 axb5 17. Rxa8 Qxa8 18. Bxb5 Bxe4 19. Nxe4 Rxe4 20. Be3 Nb6 21. Qc2 Re7 22. Bc6 {½-½ (50) So,W (2778)-Predke,A (2682) Berlin 2022}) 10... Rf8 {[%emt 0:00:09]} 11. Nf3 {[%emt 0:00:08]} Re8 {[%emt 0:00:06]} 12. Ng5 {[%emt 0:01:43] 12.a3 is a critical line.} Rf8 {[%emt 0:00:09]} 13. Nf3 {[%emt 0:00:07]} 1/2-1/2

[Event "LV Capablanca Memorial Premier 2022"]
[Site "La Habana"]
[Date "2022.04.28"]
[Round "9.5"]
[White "Forgas Moreno, Yaniela"]
[Black "Hernandez Gil, Ineymig"]
[Result "1/2-1/2"]
[ECO "A03"]
[WhiteElo "2303"]
[BlackElo "2348"]
[Annotator "TA"]
[PlyCount "110"]
[EventDate "2022.04.20"]
[EventType "tourn"]
[EventCountry "CUB"]
[SourceTitle "playchess.com"]
[Source "ChessBase"]
[SourceQuality "1"]
[TimeControl "40/5400+30:1800+30"]

{[%evp 9,110,-6,-5,-2,1,-22,-29,-33,-34,-45,-43,-71,-71,-72,-70,-120,-120,-129,-125,-117,-117,-150,-151,-186,-152,-195,-191,-196,-184,-190,-131,-122,-125,-157,-152,-155,-155,-131,-128,-128,-126,-177,-180,-174,-175,-190,-175,-268,-168,-176,-176,-176,-175,-249,-66,-52,-10,-10,-4,-11,-4,-120,-36,-31,0,0,0,-387,-374,-466,-408,-386,-25,-15,0,0,0,-388,-318,-329,-167,-522,-539,-1184,-1107,-974,-990,-1929,0,0,0,0,0,0,0,0,0,0,0,0,0,0,0]} 1. f4 {[%emt 0:00:43]} d5 {[%emt 0:00:32]} 2. Nf3 {[%emt 0:00:11]} Nf6 {[%emt 0:00:10]} 3. d3 {[%emt 0:00:23]} e6 {[%emt 0:00:08]} 4. g3 {[%emt 0:00:29]} b5 {[%emt 0:00:05]} 5. Bg2 {[%emt 0:01:32]} Bb7 {[%emt 0:00:06]} 6. O-O {[%emt 0:01:53] A03: Bird's Opening with 1...d5.} Nbd7 {[%emt 0:00:05]} 7. Qe1 {[%emt 0:04:29]} Bc5+ {[%emt 0:00:13] [#]} 8. d4 $146 {[%emt 0:00:26] Black has an edge.} ({Predecessor:} 8. e3 O-O 9. h3 a5 10. Nc3 b4 11. Nd1 a4 12. g4 b3 13. cxb3 axb3 14. a3 {1-0 (40) Vigus,J (2260)-Dearing,E (2295) Hampstead 1998}) 8... Be7 {[%emt 0:02:24]} 9. Ne5 {[%emt 0:03:02]} c5 {[%emt 0:06:11]} 10. e3 {[%emt 0:05:31]} O-O {[%emt 0:05:09]} 11. Nd2 {[%emt 0:09:31][%cal Bb1d2,Bd2f3,Bf3e5][%mdl 32]} a5 {[%emt 0:07:00]} 12. Kh1 {[%emt 0:05:27]} ({White should try} 12. a4 $15) 12... Qc7 {[%emt 0:07:01]} 13. c3 {[%emt 0:06:09]} b4 {[%emt 0:06:24]} 14. a3 {[%emt 0:16:43]} Rfc8 {[%emt 0:14:00]} 15. Nxd7 {[%emt 0:05:25]} Qxd7 {[%emt 0:04:34]} (15... Nxd7 16. e4 $17) 16. Nf3 {[%emt 0:11:11]} Ne4 {[%emt 0:06:56]} 17. Ne5 {[%emt 0:05:38]} Qc7 {[%emt 0:08:37]} 18. f5 {[%emt 0:07:08]} f6 {[%emt 0:06:14]} 19. Ng4 {[%emt 0:01:12]} h5 {[%emt 0:02:27]} (19... bxc3 $19 20. bxc3 exf5 21. Rxf5 cxd4 22. exd4 Qxc3 23. Qxc3 Rxc3) 20. Nf2 $17 {[%emt 0:00:55]} exf5 {[%emt 0:03:48]} 21. Nxe4 {[%emt 0:05:15]} fxe4 {[%emt 0:02:02]} 22. Bh3 {[%emt 0:00:30]} Rd8 {[%emt 0:01:41]} 23. axb4 {[%emt 0:02:27]} cxb4 {[%emt 0:03:07]} 24. Bd2 {[%emt 0:00:54][%cal Rc3b4]} Qb6 {[%emt 0:02:11]} 25. cxb4 {[%emt 0:01:41]} (25. Rg1 $17 {was necessary.}) 25... axb4 $19 {[%emt 0:00:19]} 26. Rxa8 {[%emt 0:00:41]} Rxa8 {[%emt 0:00:19]} 27. Qd1 {[%emt 0:00:40]} g6 {[%emt 0:01:03]} 28. g4 {[%emt 0:01:03]} (28. Kg1 $142) 28... hxg4 {[%emt 0:02:11]} 29. Bxg4 {[%emt 0:00:40]} Kg7 {[%emt 0:01:44]} 30. Rg1 {[%emt 0:00:22]} Rh8 {[%emt 0:02:30]} 31. Bf5 {[%emt 0:01:18]} (31. Rg2 {is a better defense.}) 31... Rh6 $2 $40 {[%emt 0:01:01][%mdl 128] Black mounts an attack.} (31... g5 $1 $19 32. Be1 Bd6) 32. Qg4 $15 {[%emt 0:00:41][%cal Rf5g6]} Qd6 {[%emt 0:01:38][%csl Gd6][%cal Rh6h2]} 33. h4 {[%emt 0:00:40]} g5 {[%emt 0:00:30]} 34. Be1 $1 {[%emt 0:00:31]} Qc7 {[%emt 0:02:30]} 35. h5 {[%emt 0:01:01]} (35. Bd7 $11) 35... Bc6 {[%emt 0:01:01]} (35... Bd6 $17 {Hoping for ...Ba6.} 36. Bf2 Rh8) 36. Bg3 {[%emt 0:00:42]} Bd6 {[%emt 0:00:34]} 37. Bxd6 {[%emt 0:01:14]} Qxd6 {[%emt 0:00:02]} 38. Bg6 {[%emt 0:00:13][%mdl 8192] Inhibits Be8.} (38. Ra1 $11 {and White has nothing to worry.} Qc7 39. Rc1) 38... Bd7 $19 {[%emt 0:00:49]} 39. Qg2 {[%emt 0:00:31]} Qe7 {[%emt 0:00:43] White must now prevent ...Be8.} 40. Rc1 {[%emt 0:00:00]} Be8 $2 {[%emt 0:00:00]} (40... Rh8 $19 {Threatens to win with ...Rc8.} 41. Qf2 (41. Rc7 $2 Rc8 $19) 41... Bg4) 41. Qg3 $1 $11 {[%emt 0:02:46]} Bd7 {[%emt 0:18:38]} 42. Rc7 {[%emt 0:10:57]} Qe6 {[%emt 0:07:44] Against Bf5} 43. Kg2 $2 {[%emt 0:12:11][%mdl 8192]} (43. Ra7 $11 {and White is okay.}) 43... Rh8 $1 $19 {[%emt 0:02:06]} 44. Kf2 {[%emt 0:01:48]} Ra8 {[%emt 0:00:50] Prevents Ra7.} (44... Rc8 45. Rxc8 Bxc8 46. Qc7+ Qd7 47. Qc5 $19) (44... Kh6 $142 {Strongly threatening ...Ra8.} 45. Rc1 Ra8) 45. Kg2 $2 {[%emt 0:01:30]} (45. Rb7 {nothing else works.} Rc8 46. Rc7) 45... Ra2 {[%emt 0:00:33]} 46. Be8 {[%emt 0:00:46]} Rxb2+ {[%emt 0:00:55]} 47. Kg1 {[%emt 0:00:40] [#]} Qa6 $1 {[%emt 0:03:06]} 48. Qe1 {[%emt 0:01:53] [#] Against Qa1} (48. Rxd7+ Kh8) 48... Qa2 $2 {[%emt 0:00:38]} 49. Bxd7 $11 {[%emt 0:00:29][%cal Oh5h6] h6+! is the strong threat. Really sharp! The position is equal.} ({Wrong is} 49. Rxd7+ $2 Kf8 50. Rd8 Rb1 51. Ba4+ Ke7 $19) 49... Rg2+ {[%emt 0:01:04]} 50. Kf1 {[%emt 0:00:27] And now Bh3+ would win.} Rh2 {[%emt 0:00:39][%cal Rh2h1]} 51. Bf5+ {[%emt 0:01:37]} Kh8 {[%emt 0:00:29][%csl Gh2][%cal Ra2g2]} (51... Kg8 $5 52. Rc8+ (52. Be6+ Kh8 53. Rc8+ Kh7 54. Bf5+ Kh6 55. Rh8+ Kg7 56. Rh7+ Kg8 57. Be6+ Kxh7 58. Qg3 Rh1+) 52... Kg7 53. Rc7+ Kh8 54. Rc8+ Kg7 55. Rc7+ $11) 52. Rc8+ {[%emt 0:00:26]} Kg7 {[%emt 0:00:08][%cal Rh2h1]} 53. Rc7+ {[%emt 0:00:25]} Kh8 {[%emt 0:00:12][%cal Rh2h1]} (53... Kg8 $5 54. Rc8+ (54. Be6+ {gets mated.} Kh8 55. Rc8+ Kh7 56. Bf5+ Kh6 57. Rh8+ Kg7 58. Rh7+ Kg8 59. Be6+ Kxh7 60. Qg3 Rh1+) 54... Kg7 55. Rc7+ $11) 54. Rc8+ {[%emt 0:00:32]} Kg7 {[%emt 0:00:18][%cal Rh2h1]} 55. Rc7+ {[%emt 0:00:05]} Kh8 {[%emt 0:01:10] And White is the lucky defender.  Weighted Error Value: White=0.65/Black=0.47} (55... Kg8 $5 56. Rc8+ (56. Be6+ {leads to mate.} Kh8 57. Rc8+ Kh7 58. Bf5+ Kh6 59. Rh8+ Kg7 60. Rh7+ Kg8 61. Be6+ Kxh7 62. Qg3 Rh1+) 56... Kg7 $11) 1/2-1/2